fUSD/lending_fUSD_20241125
["ID","MTS","AMOUNT","RATE_DAILY","PERIOD"]
[343303097,1732552232958,-8384.4,0.0003705,2]
[343303098,1732552232967,-1000.0,0.00037144,2]
[343303099,1732552232977,-163.99,0.00037198,2]
[343303100,1732552232986,-16956.7,0.00037198,63]
[343303101,1732552232995,-696.82,0.00037198,2]
[343303102,1732552233005,-196.16318133,0.000372,103]
[343303103,1732552233014,-351.64,0.00037214,120]
[343303104,1732552233026,-200.0,0.00037243,2]
[343303105,1732552233036,-1000.0,0.000373,15]
[343303106,1732552233046,-2550.22,0.00037309,2]
[343303107,1732552233056,-5594.39319383,0.00037333,2]
[343303108,1732552233066,-250.0,0.00037374,2]
[343303109,1732552233075,-237.0,0.0003738,2]
[343303110,1732552233085,-2517.5,0.00037444,2]
[343303111,1732552233096,-150.0,0.00037455,2]
[343303112,1732552233106,-3275.38,0.00037496,2]
[343303113,1732552233116,-203.404,0.00037497,2]
[343303114,1732552233126,-500.0,0.00037597,2]
[343303115,1732552233135,-1000.0,0.000376,15]
[343303116,1732552233145,-1751.24,0.00037625,2]
[343303117,1732552233155,-4499.67,0.00037673,2]
[343303118,1732552233164,-5062.2,0.00037701,2]
[343303119,1732552233174,-154.69102333,0.000378,7]
[343303120,1732552233183,-1000.0,0.000379,15]
[343303121,1732552233193,-220.23,0.00037929,2]
[343303122,1732552233203,-3036.42,0.00037981,2]
[343303123,1732552233213,-3388.28,0.00037981,2]
[343303124,1732552233222,-3036.42,0.00037991,2]
[343303125,1732552233233,-678.01898496,0.00037991,2]
[343303126,1732552233243,-155.27072624,0.00037991,2]
[343303127,1732552233253,-3036.42,0.00038001,2]
[343303128,1732552233263,-3036.42,0.00038011,2]
[343303129,1732552233275,-3036.42,0.00038021,2]
[343303130,1732552233285,-3036.42,0.00038031,2]
[343303131,1732552233295,-3036.42,0.00038041,2]
[343303132,1732552233306,-3036.42,0.00038051,2]
[343303133,1732552233316,-3036.42,0.00038061,2]
[343303134,1732552233326,-3036.42,0.00038071,2]
[343303135,1732552233335,-1852.42,0.00038076,2]
[343303136,1732552233345,-3036.42,0.00038081,2]
[343303137,1732552233354,-3036.42,0.00038091,2]
[343303138,1732552233364,-5594.39319383,0.00038094,2]
[343303139,1732552233374,-200.0,0.00038098,2]
[343303140,1732552233383,-1802.63,0.000381,2]
[343303141,1732552233393,-3036.42,0.00038101,2]
[343303143,1732552233403,-3036.42,0.00038111,2]
[343303144,1732552233412,-3036.42,0.00038121,2]
[343303145,1732552233422,-3036.42,0.00038131,2]
[343303146,1732552233432,-3036.42,0.00038141,2]
[343303147,1732552233441,-3036.42,0.00038151,2]
[343303148,1732552233451,-3036.42,0.00038161,2]
[343303149,1732552233461,-3036.42,0.00038171,2]
[343303150,1732552233470,-500.0,0.00038172,2]
[343303151,1732552233479,-4060.0,0.00038237,2]
[343303152,1732552233488,-166.8,0.00038262,2]
[343303154,1732552233498,-6757.7969,0.00038392,2]
[343303156,1732552233508,-237.0,0.0003849,2]
[343303158,1732552233517,-151.0,0.00038548,120]
[343303160,1732552233529,-502.41445078,0.0003855,5]
[343303162,1732552233539,-167.54,0.00038721,2]
[343303164,1732552233549,-5594.39319383,0.00038856,2]
[343303166,1732552233558,-159.98,0.00038862,2]
[343303168,1732552233568,-568.1723,0.000389,2]
[343303170,1732552233580,-9254.912,0.000389,2]
[343303172,1732552233591,-2676.1,0.00038932,4]
[343303173,1732552233600,-155.27072623,0.00038968,2]
[343303174,1732552233610,-1235.55370796,0.00038975,2]
[343303175,1732552233619,-450.0,0.00039,2]
[343303176,1732552233630,-31715.36823098,0.00039,2]
[343303177,1732552233640,-188.17033601,0.00039,120]
[343303178,1732552233649,-248.711,0.00039074,2]
[343303179,1732552233659,-2508.0,0.00039189,2]
[343303180,1732552233669,-1235.55370787,0.000393,2]
[343303181,1732552233681,-260.71,0.00039431,2]
[343303182,1732552233691,-820.4735,0.00039597,2]
[343303183,1732552233702,-237.0,0.0003961,2]
[343303184,1732552233713,-202.0,0.0003961,30]
[343303185,1732552233723,-5594.39319383,0.00039617,2]
[343303187,1732552233734,-1235.55370787,0.00039625,2]
[343303189,1732552233744,-150.0,0.00039699,30]
[343303191,1732552233754,-3846.155,0.00039704,2]
[343303193,1732552233764,-309.4235877,0.00039705,2]
[343303195,1732552233778,-841.0814,0.00039705,2]
[343303197,1732552233790,-1000.0,0.00039705,2]
[343303199,1732552233803,-2500.0,0.00039705,2]
[343303201,1732552233813,-2517.5,0.00039708,2]
[343303203,1732552233823,-1802.63,0.00039756,2]
[343303205,1732552233834,-351.64,0.00039798,120]
[343303207,1732552233846,-800.0,0.000398,14]
[343303209,1732552233857,-1480.0745,0.00039805,2]
[343303211,1732552233867,-433.9473,0.00039805,2]
[343303213,1732552233878,-500.0,0.00039805,2]
[343303215,1732552233888,-5648.6455,0.00039805,2]
[343303217,1732552233898,-889.4398,0.00039805,2]
[343303219,1732552233908,-25173.2752,0.00039805,2]
[343303221,1732552233919,-8205.9987,0.00039805,2]
[343303223,1732552233928,-118689.7282,0.00039805,2]
[343303225,1732552233939,-1000.0,0.00039805,2]
[343303227,1732552233949,-40610.11386365,0.00039805,2]
[343303229,1732552233959,-2637.7209,0.00039805,2]
[343303231,1732552233969,-166.39663466,0.00039809,13]
[343303234,1732552233979,-150.0,0.00039836,30]
[343303236,1732552233989,-3000.0,0.0003987,2]
[343303238,1732552233999,-152.20659291,0.00039873,5]
[343303240,1732552234009,-157.26206276,0.00039873,2]
[343303241,1732552234019,-179.89667676,0.00039873,13]
[343303243,1732552234033,-166.82966766,0.00039873,13]
[343303245,1732552234043,-309.42358766,0.00039888,2]
[343303247,1732552234053,-3000.0,0.0003989,2]
[343303249,1732552234063,-3000.0,0.0003989,2]
[343303251,1732552234073,-1700.0,0.000399,14]
[343303253,1732552234083,-3000.0,0.000399,2]
[343303255,1732552234095,-21352.55561493,0.00039904,2]
[343303257,1732552234106,-52283.88517486,0.00039905,2]
[343303305,1732552234588,-36757.55049904,0.00039905,2]
[343303643,1732552238248,-482.78,0.00036994,10]
[343303646,1732552238258,-1105.1909775,0.00038445,2]
[343303649,1732552238271,-1394.8090225,0.00038445,2]
[343303652,1732552238284,-2132.53746358,0.00039905,2]
[343303655,1732552238295,-24136.8273,0.00039905,2]
[343303658,1732552238318,-251.84209807,0.00039905,2]
[343303660,1732552238377,-4345.92300786,0.00039905,2]
[343303661,1732552238387,-2984.73436315,0.00039905,2]
[343303662,1732552238398,-262.07157926,0.00039905,2]
[343303693,1732552238732,-95950.56871658,0.00039905,2]
[343303699,1732552238773,-514.97680774,0.00039905,2]
[343303863,1732552240274,-7620.0,0.00039905,2]
[343303865,1732552240292,-33710.3062269,0.00039905,2]
[343303867,1732552240303,-5657.51922759,0.00039905,2]
[343303869,1732552240315,-14064.1060242,0.00039905,2]
[343303871,1732552240326,-38916.428742,0.00039905,2]
[343303881,1732552240407,-33401.68649799,0.00039905,2]
[343303896,1732552240552,-4891.54589889,0.00039905,2]
[343303898,1732552240564,-2489.8479276,0.00039905,2]
[343304189,1732552243589,-2196.55694927,0.00039905,2]
[343304207,1732552243713,-1344.83545182,0.00039905,2]
[343304211,1732552243726,-7001.45866957,0.00039905,2]
[343304222,1732552243772,-17718.51292161,0.00039905,2]
[343304239,1732552243885,-23027.53235014,0.00039905,2]
[343304246,1732552243948,-5075.64305693,0.00039905,2]
[343304248,1732552243959,-10971.62476039,0.00039905,2]
[343304251,1732552243970,-2438.0,0.00039905,2]
[343304253,1732552243982,-2003.83997744,0.00039905,2]
[343304257,1732552244011,-4540.0,0.00039905,2]
[343304264,1732552244075,-1328.79030579,0.00039905,2]
[343304267,1732552244086,-4373.81981845,0.00039905,2]
[343304278,1732552244186,-27317.64362604,0.00039905,2]
[343304459,1732552246188,-4562.14621048,0.00039905,2]
[343304461,1732552246199,-816.01930333,0.00039905,2]
[343304462,1732552246210,-2010.50166447,0.00039905,2]
[343304463,1732552246221,-445.624,0.00039905,2]
[343304464,1732552246234,-684.54,0.00039905,2]
[343304465,1732552246313,-481.665,0.00039905,2]
[343304466,1732552246324,-1253.623125,0.00039905,2]
[343304467,1732552246335,-599.43524309,0.00039905,2]
[343304468,1732552246346,-2364.50858707,0.00039905,2]
[343304469,1732552246357,-2527.79113104,0.00039905,2]
[343304470,1732552246368,-1550.94873725,0.00039905,2]
[343304472,1732552246379,-2535.0000005,0.00039905,2]
[343304474,1732552246391,-1660.00004854,0.00039905,2]
[343304478,1732552246467,-395.57376677,0.00039905,2]
[343304479,1732552246611,-105747.797693,0.00039905,2]
[343304575,1732552339849,151.0,0.0003,120]
[343304576,1732552429228,308.0,0.0003,30]
[343304579,1732552568386,800.0,0.00026986,120]
[343304581,1732552630158,5750.86100382,0.00033,30]
[343304585,1732552844600,500.0,0.00033,30]
[343304586,1732552853236,500.62695219,0.00033,30]
[343304588,1732552861868,500.0,0.00033,30]
[343304591,1732553014214,300.0,0.00032,120]
[343304592,1732553026711,300.0,0.00033,120]
[343304593,1732553118647,18810.2114322,0.00033,30]
[343304594,1732553119922,254.9,0.00033,120]
[343304610,1732553431375,-542.571321,0.00029144,2]
[343304611,1732553431384,-54.82897322,0.00029291,2]
[343304615,1732553431481,-814.2321754,0.00029291,2]
[343304616,1732553431491,-166.69081177,0.00029391,2]
[343304617,1732553431499,-19220.10865475,0.00029491,2]
[343304618,1732553431511,-15746.8123121,0.00029491,2]
[343304619,1732553431520,-164.28,0.00029491,2]
[343304620,1732553431529,-150.0,0.00030658,2]
[343304621,1732553431538,-200.95,0.00030685,2]
[343304622,1732553431548,-154.49,0.00030685,2]
[343304623,1732553431557,-250.0,0.00031,2]
[343304624,1732553431566,-177.11025,0.00031421,2]
[343304625,1732553431576,-169.6185,0.0003145,2]
[343304626,1732553431585,-203.91,0.00031694,2]
[343304627,1732553431594,-300.0,0.00033,2]
[343304628,1732553431603,-150.0,0.00033,2]
[343304629,1732553431612,-150.0,0.00033,2]
[343304630,1732553431621,-150.0,0.00033,2]
[343304631,1732553431630,-150.0,0.00033,2]
[343304632,1732553431639,-150.0,0.00033,2]
[343304633,1732553431648,-150.0,0.00033,2]
[343304634,1732553431657,-244.87551712,0.00033,2]
[343304635,1732553431666,-400.0,0.00034,120]
[343304636,1732553431675,-150.0,0.00034548,10]
[343304637,1732553431684,-151.0,0.00034603,120]
[343304638,1732553431694,-150.0,0.00034941,2]
[343304639,1732553431703,-350.0,0.00035,2]
[343304640,1732553431717,-400.0,0.00036,120]
[343304649,1732553431947,-400.0,0.00036,120]
[343304651,1732553431958,-1000.0,0.00036151,2]
[343304653,1732553431974,-200.95,0.0003628,2]
[343304655,1732553431984,-2138.57,0.00036349,120]
[343304657,1732553431995,-23900.0,0.00036373,2]
[343304659,1732553432005,-150.0,0.00036415,2]
[343304661,1732553432014,-250.0,0.00036495,120]
[343304663,1732553432023,-1852.42,0.00036501,2]
[343304665,1732553432033,-150.56,0.00036584,2]
[343304667,1732553432042,-1802.68,0.00036629,2]
[343304669,1732553432052,-2612.88,0.00036631,2]
[343304671,1732553432061,-250.0,0.00036635,2]
[343304673,1732553432070,-2850.12,0.00036709,2]
[343304675,1732553432079,-500.0,0.00036709,2]
[343304677,1732553432088,-647.48,0.00036787,120]
[343304679,1732553432097,-163.99,0.00036859,2]
[343304681,1732553432106,-211.71,0.00036868,2]
[343304683,1732553432117,-250.0,0.00036916,2]
[343304686,1732553432126,-316.47,0.00036935,120]
[343304688,1732553432135,-200.0,0.00036969,2]
[343304690,1732553432145,-500.0,0.00037,120]
[343304691,1732553432154,-400.0,0.00037,2]
[343304692,1732553432163,-565.80026587,0.00037,120]
[343304693,1732553432172,-890.46,0.00037011,2]
[343304694,1732553432188,-2327.42,0.00037015,2]
[343304695,1732553432197,-154.49,0.00037772,2]
[343304696,1732553432207,-500.0,0.00038,120]
[343304697,1732553432222,-260.71,0.00038295,2]
[343304698,1732553432232,-1000.0,0.000383,7]
[343304699,1732553432242,-160.85,0.00038408,2]
[343304700,1732553432251,-160.85,0.00038456,2]
[343304701,1732553432261,-160.85,0.00038504,2]
[343304702,1732553432270,-160.85,0.00038552,2]
[343304703,1732553432280,-160.85,0.000386,2]
[343304704,1732553432289,-150.56,0.00038616,2]
[343304705,1732553432299,-211.71,0.00038711,2]
[343304706,1732553432308,-352.52,0.00038794,120]
[343304707,1732553432318,-450.0,0.00039,2]
[343304708,1732553432328,-217.4583,0.00039179,2]
[343304709,1732553432337,-309.8175,0.00039179,2]
[343304710,1732553432346,-151.0,0.00039205,120]
[343304711,1732553432356,-177.11025,0.00039248,2]
[343304712,1732553432365,-169.6185,0.00039271,2]
[343304713,1732553432375,-2327.42,0.00039279,2]
[343304714,1732553432384,-177.82,0.00039287,2]
[343304715,1732553432394,-1456.8563,0.0003941,2]
[343304716,1732553432404,-408.41,0.000395,10]
[343304717,1732553432413,-637.67,0.000395,10]
[343304718,1732553432423,-531.39,0.000395,10]
[343304719,1732553432434,-43599.74199117,0.0003951,2]
[343304720,1732553432443,-316.47,0.00039519,120]
[343304721,1732553432453,-296.71,0.00039656,2]
[343304722,1732553432469,-970.89,0.00039656,2]
[343304723,1732553432479,-970.89,0.00039656,2]
[343304724,1732553432488,-970.89,0.00039656,2]
[343304725,1732553432498,-970.89,0.00039656,2]
[343304726,1732553432508,-962.14,0.00039656,2]
[343304727,1732553432518,-1240.16,0.00039656,2]
[343304728,1732553432527,-1802.85064122,0.00039699,2]
[343304729,1732553432537,-1329.32309281,0.000397,2]
[343304730,1732553432547,-153.79746027,0.000397,2]
[343304731,1732553432556,-1000.0,0.000397,2]
[343304732,1732553432565,-2500.0,0.000397,2]
[343304733,1732553432575,-12010.2493,0.000397,2]
[343304734,1732553432584,-159.24116894,0.00039773,2]
[343304735,1732553432593,-556.34,0.0003979,3]
[343304736,1732553432603,-1000.0,0.00039799,2]
[343304737,1732553432612,-1000.0,0.00039799,2]
[343304738,1732553432621,-360.2322,0.000398,2]
[343304739,1732553432630,-500.0,0.000398,2]
[343304740,1732553432639,-100000.0,0.000398,2]
[343304741,1732553432648,-832.8,0.000398,2]
[343304742,1732553432659,-102708.664,0.000398,2]
[343304743,1732553432668,-26076.8258,0.000398,2]
[343304744,1732553432677,-10436.3471,0.000398,2]
[343304745,1732553432687,-1000.0,0.000398,2]
[343304746,1732553432696,-168.22830563,0.000398,2]
[343304747,1732553432705,-1403.0,0.000398,7]
[343304748,1732553432721,-500.0,0.00039873,5]
[343304749,1732553432731,-578.8071,0.00039888,7]
[343304750,1732553432741,-199.55288306,0.00039899,31]
[343304751,1732553432750,-368.63667774,0.00039899,31]
[343304752,1732553432759,-32555.04791233,0.000399,2]
[343304753,1732553432812,-2913.69904603,0.000399,2]
[343304754,1732553432825,-4820.4,0.000399,2]
[343304755,1732553432925,-751.54998,0.000399,2]
[343304756,1732553432943,-777.46132207,0.000399,2]
[343304768,1732553437410,-5218.61,0.00036623,2]
[343304769,1732553437420,-1569.2446,0.0003941,2]
[343304770,1732553437429,-500.0,0.00039799,31]
[343304771,1732553437439,-508.7469481,0.00039799,31]
[343304772,1732553437448,-208181.84173957,0.000399,2]
[343304773,1732553437458,-1000.0,0.000399,14]
[343304774,1732553437471,-2178.52484242,0.00039904,120]
[343304775,1732553437481,-2000.0,0.00039905,2]
[343304776,1732553437490,-200.0,0.00039905,2]
[343304777,1732553437499,-200.0,0.00039905,2]
[343304778,1732553437509,-1802.8506412,0.00039944,15]
[343304779,1732553437518,-1329.32309272,0.00039944,15]
[343304780,1732553437528,-500.0,0.0004,30]
[343304781,1732553437537,-500.0,0.0004,30]
[343304782,1732553437547,-6867.0,0.0004,2]
[343304783,1732553437556,-6865.0,0.0004,2]
[343304784,1732553437566,-6865.0,0.0004,2]
[343304785,1732553437575,-6865.0,0.0004,2]
[343304786,1732553437584,-6865.0,0.0004,2]
[343304787,1732553437594,-6865.0,0.0004,2]
[343304788,1732553437603,-6004.04853497,0.0004,7]
[343304789,1732553437613,-1026.43384815,0.0004,18]
[343304790,1732553437623,-804.1469949,0.0004,2]
[343304791,1732553437632,-570.26341273,0.0004,2]
[343304792,1732553437641,-10000.0,0.0004,30]
[343304793,1732553437651,-2010.37730842,0.0004,30]
[343304794,1732553437769,-3035.74792426,0.0004,30]
[343304795,1732553437780,-446.64784629,0.0004,30]
[343304796,1732553437795,-4507.22692103,0.0004,30]
[343304797,1732553437804,-4520.52359528,0.0004,30]
[343304798,1732553437814,-667.56920217,0.0004,30]
[343304799,1732553437833,-4811.90720255,0.0004,30]
[343304800,1732553437843,-12.71850739,0.0004,30]
[343304801,1732553437856,-3250.65149261,0.0004,30]
[343304802,1732553437865,-5104.81025839,0.0004,30]
[343304810,1732553438052,-3479.14778276,0.0004,30]
[343304835,1732553440261,-382.46538723,0.0004,30]
[343304836,1732553440271,-8367.85461277,0.0004,10]
[343304837,1732553440283,-1213.00380715,0.0004,10]
[343304838,1732553440310,-338.93800005,0.0004,10]
[343304839,1732553440321,-2802.8779689,0.0004,10]
[343304840,1732553440332,-527.39450001,0.0004,10]
[343304841,1732553440343,-484.83893311,0.0004,10]
[343304842,1732553440355,-5555.1665178,0.0004,10]
[343304843,1732553440366,-9007.86415865,0.0004,10]
[343304850,1732553442488,-309.42358766,0.000398,2]
[343304851,1732553442497,-442.82,0.0003989,10]
[343304852,1732553442506,-2767.12799306,0.0004,10]
[343304853,1732553442516,-2472.76403645,0.0004,7]
[343304854,1732553442527,-4694.07294616,0.0004,7]
[343304855,1732553442539,-1729.65869087,0.0004,7]
[343304856,1732553442599,-5447.97425333,0.0004,7]
[343304857,1732553442609,-5950.07818583,0.0004,7]
[343304858,1732553442618,-3750.0,0.0004,120]
[343304859,1732553442627,-1600.0,0.0004,2]
[343304860,1732553442636,-2000.0,0.0004,2]
[343304861,1732553442645,-2335.45,0.0004,120]
[343304862,1732553442655,-1016.78,0.0004,120]
[343304863,1732553442663,-500.0,0.0004,120]
[343304864,1732553442672,-12198.2003,0.0004,2]
[343304865,1732553442682,-154.11,0.0004,2]
[343304866,1732553442691,-212.99877324,0.0004,2]
[343304867,1732553442702,-1505.30131228,0.0004,2]
[343304868,1732553442713,-534.88599999,0.0004,2]
[343304869,1732553442730,-501.66436501,0.0004,2]
[343304870,1732553442770,-245.14954948,0.0004,2]
[343304871,1732553442779,-153.79746022,0.00040014,28]
[343304872,1732553442788,-1000.0,0.00040043,60]
[343304873,1732553442798,-3750.0,0.00040125,120]
[343304874,1732553442807,-1802.8506412,0.00040188,15]
[343304875,1732553442815,-1329.32309272,0.00040189,15]
[343304876,1732553442825,-150.0,0.00040249,30]
[343304877,1732553442834,-2819.14815202,0.0004025,120]
[343304878,1732553442845,-930.85184798,0.0004025,120]
[343304879,1732553442853,-153.79746022,0.00040329,28]
[343304880,1732553442863,-1848.32,0.00040375,120]
[343304881,1732553442872,-150.0,0.00040386,30]
[343304882,1732553442881,-784.14546471,0.00040421,5]
[343304884,1732553442890,-1802.8506412,0.00040433,15]
[343304886,1732553442899,-1329.32309272,0.00040433,15]
[343304888,1732553442908,-1000.0,0.000405,7]
[343304890,1732553442917,-282.17375272,0.00040523,30]
[343304892,1732553442930,-161.411735,0.00040526,30]
[343304894,1732553442939,-3150.962,0.00040545,58]
[343304896,1732553442948,-188.087,0.00040545,58]
[343304898,1732553442959,-211.71,0.00040555,2]
[343304900,1732553442968,-152.0,0.00040555,3]
[343304902,1732553442983,-1000.0,0.00040591,60]
[343304904,1732553442993,-167.7,0.00040611,2]
[343304906,1732553443005,-153.79746022,0.00040643,28]
[343304908,1732553443015,-150.56,0.00040649,2]
[343304912,1732553443024,-1000.0,0.00040669,2]
[343304913,1732553443033,-1802.8506412,0.00040677,15]
[343304916,1732553443042,-1329.32309272,0.00040678,15]
[343304918,1732553443051,-237.0,0.0004072,2]
[343304920,1732553443061,-202.0,0.0004072,30]
[343304923,1732553443070,-1802.8506412,0.00040922,15]
[343304926,1732553443079,-1329.32309272,0.00040922,15]
[343304928,1732553443088,-596.658,0.0004093,30]
[343304930,1732553443097,-153.79746022,0.00040957,28]
[343304932,1732553443107,-500.0,0.00041,2]
[343304934,1732553443116,-2033.0,0.00041,117]
[343304936,1732553443126,-561.1561442,0.00041049,2]
[343305158,1732553445299,-150.0,0.00040249,30]
[343305161,1732553445309,-938.8438558,0.00041049,2]
[343305163,1732553445318,-824.189343,0.0004108,2]
[343305168,1732553445357,-2320.87312422,0.0004108,2]
[343305170,1732553445368,-43050.31763915,0.0004108,2]
[343305173,1732553445389,-214.88866928,0.0004108,2]
[343305177,1732553445415,-332.60832856,0.0004108,2]
[343305179,1732553445426,-5773.08,0.0004108,2]
[343305240,1732553446025,-1291.60377243,0.0004108,2]
[343305242,1732553446034,-632.38528036,0.00041095,30]
[343305244,1732553446045,-150.0,0.00041096,2]
[343305246,1732553446060,-178.59894225,0.00041096,2]
[343305248,1732553446070,-248.0,0.00041096,2]
[343305250,1732553446079,-306.28,0.00041096,2]
[343305252,1732553446089,-2100.0,0.000411,15]
[343305254,1732553446099,-1006.91645438,0.000411,2]
[343305256,1732553446109,-1000.0,0.00041139,60]
[343305258,1732553446119,-161.411735,0.0004116,30]
[343305260,1732553446128,-1802.8506412,0.00041166,15]
[343305262,1732553446138,-1329.32309272,0.00041167,15]
[343305264,1732553446148,-3200.0,0.000412,15]
[343305266,1732553446157,-1000.0,0.000412,7]
[343305268,1732553446167,-153.79746022,0.00041271,28]
[343305270,1732553446176,-4300.0,0.000413,15]
[343305272,1732553446185,-647.48,0.00041386,120]
[343305274,1732553446195,-5400.0,0.000414,15]
[343305276,1732553446207,-1802.8506412,0.00041411,15]
[343305278,1732553446217,-1329.32309272,0.00041411,15]
[343305280,1732553446229,-1600.0,0.0004148,2]
[343305282,1732553446239,-2000.0,0.0004148,2]
[343305284,1732553446248,-70.45525753,0.000415,2]
[343305287,1732553446269,-3929.54474247,0.000415,2]
[343305289,1732553446276,-1440.7215,0.000415,2]
[343305291,1732553446284,-4040.9086,0.000415,2]
[343305293,1732553446291,-1000.0,0.000415,15]
[343305295,1732553446298,-2327.42,0.00041543,2]
[343305297,1732553446307,-153.79746022,0.00041586,28]
[343305299,1732553446316,-739.12125652,0.000416,2]
[343305301,1732553446324,-1000.0,0.000416,15]
[343305303,1732553446330,-166.82966765,0.00041605,15]
[343305304,1732553446336,-1632.24637747,0.00041655,15]
[343305308,1732553446357,-500.0,0.00040189,15]
[343305310,1732553446366,-170.60426373,0.00041655,15]
[343305312,1732553446375,-1329.32309272,0.00041656,15]
[343305314,1732553446384,-1000.0,0.00041687,60]
[343305316,1732553446393,-11441.32038937,0.00041698,10]
[343305329,1732553446508,-5047.52889422,0.00041698,10]
[343305331,1732553446520,-689.12702212,0.00041698,10]
[343305334,1732553446531,-378.7925979,0.00041698,10]
[343305336,1732553446543,-823.18929784,0.00041698,10]
[343305969,1732553899888,150.0,0.00033,30]
[343305970,1732553900479,150.0,0.0003,120]
[343305971,1732553900533,150.0,0.00029,60]
[343305972,1732553900735,150.0,0.000271,120]
[343305973,1732553901030,150.0,0.00027,120]
[343305975,1732554068978,800.0,0.00026986,120]
[343305992,1732554606619,-889.0,0.000276,2]
[343305993,1732554623994,151.0,0.0003,120]
[343306002,1732554631577,-180.0,0.000276,2]
[343306003,1732554631587,-152.79,0.00030685,2]
[343306004,1732554631597,-159.3,0.00030685,2]
[343306005,1732554631606,-95.57878533,0.00031,2]
[343306006,1732554631854,-154.42121467,0.00031,2]
[343306007,1732554631864,-295.9165,0.00031834,2]
[343306008,1732554631874,-274.384,0.00032963,2]
[343306009,1732554631884,-275.22628533,0.00033,2]
[343306010,1732554631967,-24.77371467,0.00033,2]
[343306011,1732554631976,-150.0,0.0003309,2]
[343306012,1732554631986,-151.0,0.00034,120]
[343306013,1732554631995,-350.0,0.00035,2]
[343306014,1732554632005,-995.72506286,0.000369,2]
[343306015,1732554632027,-10.3546041,0.000369,2]
[343306016,1732554632036,-400.0,0.00037,2]
[343306017,1732554632046,-175.96018509,0.00037,10]
[343306182,1732554637813,-101.51981491,0.00037,10]
[343306183,1732554637823,-2083.24,0.00037704,2]
[343306184,1732554637832,-151.0,0.00038,120]
[343306185,1732554637841,-150.99,0.0003884,2]
[343306186,1732554637850,-2126.73,0.0003884,2]
[343306187,1732554637863,-256.79,0.0003884,2]
[343306188,1732554637891,-159.3,0.00038862,2]
[343306189,1732554637901,-3999.99999901,0.0003894,2]
[343306190,1732554637910,-450.0,0.00039,2]
[343306191,1732554637919,-200.0,0.00039263,2]
[343306192,1732554637929,-1000.0,0.00039272,2]
[343306193,1732554637938,-5071.81,0.00039318,2]
[343306194,1732554637947,-901.34,0.00039464,2]
[343306195,1732554637957,-150.56,0.00039474,2]
[343306196,1732554637966,-23900.0,0.00039497,2]
[343306197,1732554637976,-1250.0,0.000395,2]
[343306198,1732554637985,-271.14,0.00039533,2]
[343306199,1732554637994,-250.0,0.00039549,120]
[343306200,1732554638004,-250.0,0.00039556,2]
[343306201,1732554638013,-295.9165,0.00039574,2]
[343306202,1732554638022,-250.0,0.00039617,2]
[343306203,1732554638031,-500.0,0.00039622,2]
[343306204,1732554638041,-500.0,0.0003963,2]
[343306205,1732554638051,-611.51,0.00039673,120]
[343306206,1732554638060,-6946.4407,0.000397,2]
[343306207,1732554638069,-431.2682,0.000397,2]
[343306208,1732554638079,-1000.0,0.000398,7]
[343306209,1732554638088,-293.29,0.00039816,120]
[343306210,1732554638097,-2083.24,0.00039968,2]
[343306211,1732554638107,-1601.11,0.0004,2]
[343306212,1732554638117,-1600.0,0.0004,2]
[343306213,1732554638126,-150.0,0.00040172,2]
[343306214,1732554638136,-180.339,0.00040249,57]
[343306215,1732554638145,-152.79,0.00040349,2]
[343306216,1732554638154,-155.51,0.000404,2]